[Event "Titled Tuesday Blitz January 31 Early 2023"]
[White "Taspinar, Yanki"]
[Black "Skuhala, Barbara"]
[WhiteFideId "34561188"]
[BlackFideId "14605465"]
[WhiteElo "2262"]
[BlackElo "2153"]
[Result "0-1"]
[Round "06"]
[TimeControl "180+2"]
[Date "2023.01.31"]
[WhiteClock "0:00:02"]
[BlackClock "0:00:24"]

1. Nf3 {[%clk 0:03:00]}  Nf6 {[%clk 0:02:57]} 2. g3 {[%clk 0:03:01]}  b5 {[%clk 0:02:53]} 3. Bg2 {[%clk 0:03:00]}  Bb7 {[%clk 0:02:52]} 4. O-O {[%clk 0:03:00]}  a6 {[%clk 0:02:52]} 5. a4 {[%clk 0:02:55]}  b4 {[%clk 0:02:49]} 6. d3 {[%clk 0:02:55]}  a5 {[%clk 0:02:46]} 7. e4 {[%clk 0:02:55]}  c5 {[%clk 0:02:46]} 8. Nbd2 {[%clk 0:02:55]}  d6 {[%clk 0:02:46]} 9. Nc4 {[%clk 0:02:53]}  e6 {[%clk 0:02:46]} 10. b3 {[%clk 0:02:52]}  Be7 {[%clk 0:02:46]} 11. Bb2 {[%clk 0:02:53]}  O-O {[%clk 0:02:47]} 12. Qe2 {[%clk 0:02:51]}  Nc6 {[%clk 0:02:47]} 13. h3 {[%clk 0:02:49]}  Rc8 {[%clk 0:02:47]} 14. Rfe1 {[%clk 0:02:49]}  d5 {[%clk 0:02:46]} 15. exd5 {[%clk 0:02:43]}  exd5 {[%clk 0:02:45]} 16. Nce5 {[%clk 0:02:42]}  Nxe5 {[%clk 0:02:45]} 17. Nxe5 {[%clk 0:02:42]}  Bd6 {[%clk 0:02:42]} 18. f4 {[%clk 0:02:36]}  Qc7 {[%clk 0:02:41]} 19. Ng4 {[%clk 0:02:29]}  Nxg4 {[%clk 0:02:38]} 20. Qxg4 {[%clk 0:02:30]}  d4 {[%clk 0:02:38]} 21. Bxb7 {[%clk 0:02:10]}  Qxb7 {[%clk 0:02:38]} 22. Kf2 {[%clk 0:02:11]}  Rfe8 {[%clk 0:02:36]} 23. Rad1 {[%clk 0:02:07]}  g6 {[%clk 0:02:26]} 24. Bc1 {[%clk 0:02:04]}  Qd5 {[%clk 0:02:24]} 25. Qd7 {[%clk 0:01:52]}  Red8 {[%clk 0:02:15]} 26. Qg4 {[%clk 0:01:27]}  Re8 {[%clk 0:02:14]} 27. Bd2 {[%clk 0:01:25]}  f5 {[%clk 0:02:13]} 28. Qh4 {[%clk 0:01:17]}  Kg7 {[%clk 0:02:05]} 29. g4 {[%clk 0:01:12]}  fxg4 {[%clk 0:02:04]} 30. hxg4 {[%clk 0:01:12]}  Rf8 {[%clk 0:02:04]} 31. Re4 {[%clk 0:01:08]}  g5 {[%clk 0:01:56]} 32. Qh5 {[%clk 0:01:07]}  Rf6 {[%clk 0:01:52]} 33. Rh1 {[%clk 0:00:58]}  h6 {[%clk 0:01:51]} 34. Ke2 {[%clk 0:00:53]}  Re6 {[%clk 0:01:12]} 35. Kd1 {[%clk 0:00:39]}  Rxe4 {[%clk 0:01:11]} 36. dxe4 {[%clk 0:00:40]}  Qxe4 {[%clk 0:01:11]} 37. Qxh6+ {[%clk 0:00:40]}  Kf7 {[%clk 0:01:09]} 38. Re1 {[%clk 0:00:20]}  Qf3+ {[%clk 0:01:07]} 39. Kc1 {[%clk 0:00:20]}  Qd5 {[%clk 0:00:52]} 40. fxg5 {[%clk 0:00:15]}  Kg8 {[%clk 0:00:45]} 41. Re6 {[%clk 0:00:09]}  Bf8 {[%clk 0:00:38]} 42. Rg6+ {[%clk 0:00:08]}  Kf7 {[%clk 0:00:38]} 43. Qh7+ {[%clk 0:00:07]}  Ke8 {[%clk 0:00:38]} 44. Rf6 {[%clk 0:00:04]}  c4 {[%clk 0:00:32]} 45. Qg6+ {[%clk 0:00:04]}  Ke7 {[%clk 0:00:29]} 46. Qh7+ {[%clk 0:00:03]}  Ke8 {[%clk 0:00:29]} 47. Qh5+ {[%clk 0:00:02]}  Ke7 {[%clk 0:00:28]} 48. Ra6 {[%clk 0:00:01]}  cxb3 {[%clk 0:00:25]} 49. Qh7+ {[%clk 0:00:02]}  Kd8 {[%clk 0:00:24]} 0-1


[Site "https://www.chess.com"]

[Event "Titled Tuesday Blitz January 31 Early 2023"]
[White "Elgersma, Onno"]
[Black "Sokolovsky, Yahli"]
[WhiteFideId "1053531"]
[BlackFideId "2820242"]
[WhiteElo "2276"]
[BlackElo "2461"]
[Result "0-1"]
[Round "06"]
[TimeControl "180+2"]
[Date "2023.01.31"]
[WhiteClock "0:00:04"]
[BlackClock "0:00:10"]

1. e4 {[%clk 0:03:00]}  g6 {[%clk 0:02:56]} 2. d4 {[%clk 0:02:59]}  d6 {[%clk 0:02:56]} 3. Nf3 {[%clk 0:03:00]}  a6 {[%clk 0:02:55]} 4. Bc4 {[%clk 0:02:57]}  e6 {[%clk 0:02:24]} 5. O-O {[%clk 0:02:56]}  Bg7 {[%clk 0:02:23]} 6. Re1 {[%clk 0:02:55]}  Nf6 {[%clk 0:02:21]} 7. Bd3 {[%clk 0:02:56]}  O-O {[%clk 0:02:20]} 8. c3 {[%clk 0:02:56]}  c5 {[%clk 0:02:16]} 9. Nbd2 {[%clk 0:02:56]}  cxd4 {[%clk 0:02:15]} 10. cxd4 {[%clk 0:02:57]}  Nc6 {[%clk 0:02:14]} 11. h3 {[%clk 0:02:56]}  b6 {[%clk 0:02:05]} 12. Nf1 {[%clk 0:02:54]}  Bb7 {[%clk 0:02:06]} 13. Ng3 {[%clk 0:02:54]}  h6 {[%clk 0:01:45]} 14. Be3 {[%clk 0:02:53]}  Rc8 {[%clk 0:01:43]} 15. Qd2 {[%clk 0:02:53]}  Kh7 {[%clk 0:01:44]} 16. b4 {[%clk 0:02:49]}  a5 {[%clk 0:01:24]} 17. a3 {[%clk 0:02:49]}  Qd7 {[%clk 0:01:12]} 18. Rac1 {[%clk 0:02:43]}  axb4 {[%clk 0:01:06]} 19. axb4 {[%clk 0:02:42]}  Na7 {[%clk 0:01:07]} 20. h4 {[%clk 0:02:26]}  h5 {[%clk 0:00:56]} 21. Bg5 {[%clk 0:02:14]}  Kg8 {[%clk 0:00:51]} 22. Bh6 {[%clk 0:02:09]}  Bxh6 {[%clk 0:00:45]} 23. Qxh6 {[%clk 0:02:10]}  Ng4 {[%clk 0:00:45]} 24. Qg5 {[%clk 0:02:08]}  Qd8 {[%clk 0:00:42]} 25. Qf4 {[%clk 0:02:05]}  Rxc1 {[%clk 0:00:40]} 26. Rxc1 {[%clk 0:02:04]}  Nc6 {[%clk 0:00:40]} 27. b5 {[%clk 0:01:29]}  e5 {[%clk 0:00:39]} 28. Qd2 {[%clk 0:00:47]}  Nxd4 {[%clk 0:00:36]} 29. Nxd4 {[%clk 0:00:47]}  exd4 {[%clk 0:00:36]} 30. Qf4 {[%clk 0:00:47]}  Qxh4 {[%clk 0:00:30]} 31. Rc7 {[%clk 0:00:41]}  Bc8 {[%clk 0:00:21]} 32. Qxd6 {[%clk 0:00:40]}  Be6 {[%clk 0:00:21]} 33. Qf4 {[%clk 0:00:27]}  Ra8 {[%clk 0:00:19]} 34. Rc1 {[%clk 0:00:25]}  Ra3 {[%clk 0:00:17]} 35. Be2 {[%clk 0:00:20]}  Qh2+ {[%clk 0:00:14]} 36. Kf1 {[%clk 0:00:20]}  Rxg3 {[%clk 0:00:14]} 37. Bxg4 {[%clk 0:00:05]}  Qxg2+ {[%clk 0:00:12]} 38. Ke2 {[%clk 0:00:05]}  Bxg4+ {[%clk 0:00:12]} 39. Kd2 {[%clk 0:00:05]}  Rf3 {[%clk 0:00:10]} 40. Rc8+ {[%clk 0:00:04]}  Bxc8 {[%clk 0:00:10]} 0-1


[Site "https://www.chess.com"]

[Event "Titled Tuesday Blitz January 31 Early 2023"]
[White "Sipila, Vilka"]
[Black "Pein, Jonathan"]
[WhiteFideId "505455"]
[BlackFideId "417092"]
[WhiteElo "2427"]
[BlackElo "2265"]
[Result "1-0"]
[Round "06"]
[TimeControl "180+2"]
[Date "2023.01.31"]
[WhiteClock "0:01:03"]
[BlackClock "0:00:39"]

1. b3 {[%clk 0:02:51]}  a5 {[%clk 0:02:58]} 2. Bb2 {[%clk 0:02:52]}  a4 {[%clk 0:02:58]} 3. b4 {[%clk 0:02:52]}  e6 {[%clk 0:02:58]} 4. a3 {[%clk 0:02:53]}  Nf6 {[%clk 0:02:56]} 5. e3 {[%clk 0:02:53]}  c5 {[%clk 0:02:57]} 6. c4 {[%clk 0:02:52]}  cxb4 {[%clk 0:02:56]} 7. axb4 {[%clk 0:02:53]}  Bxb4 {[%clk 0:02:55]} 8. Rxa4 {[%clk 0:02:53]}  Rxa4 {[%clk 0:02:55]} 9. Qxa4 {[%clk 0:02:54]}  Nc6 {[%clk 0:02:55]} 10. Nf3 {[%clk 0:02:51]}  O-O {[%clk 0:02:51]} 11. Be2 {[%clk 0:02:45]}  d6 {[%clk 0:02:50]} 12. O-O {[%clk 0:02:44]}  Re8 {[%clk 0:02:49]} 13. d4 {[%clk 0:02:42]}  Qa5 {[%clk 0:02:33]} 14. Qb3 {[%clk 0:02:40]}  d5 {[%clk 0:02:24]} 15. Nc3 {[%clk 0:02:30]}  dxc4 {[%clk 0:02:21]} 16. Bxc4 {[%clk 0:02:30]}  Bd7 {[%clk 0:02:12]} 17. Ra1 {[%clk 0:02:25]}  Qh5 {[%clk 0:02:12]} 18. h3 {[%clk 0:02:10]}  g5 {[%clk 0:01:59]} 19. d5 {[%clk 0:02:06]}  exd5 {[%clk 0:01:54]} 20. Nxd5 {[%clk 0:02:07]}  Nxd5 {[%clk 0:01:48]} 21. Bxd5 {[%clk 0:02:08]}  g4 {[%clk 0:01:37]} 22. hxg4 {[%clk 0:02:05]}  Qxg4 {[%clk 0:01:36]} 23. Bxf7+ {[%clk 0:01:58]}  Kf8 {[%clk 0:01:33]} 24. Bxe8 {[%clk 0:01:57]}  Bxe8 {[%clk 0:01:34]} 25. Ne5 {[%clk 0:01:43]}  Nxe5 {[%clk 0:01:25]} 26. Bxe5 {[%clk 0:01:44]}  Bc6 {[%clk 0:01:26]} 27. Bg3 {[%clk 0:01:43]}  Qe4 {[%clk 0:01:08]} 28. f3 {[%clk 0:01:41]}  Qe7 {[%clk 0:01:05]} 29. Ra8+ {[%clk 0:01:40]}  Kg7 {[%clk 0:01:04]} 30. Rg8+ {[%clk 0:01:37]}  Kh6 {[%clk 0:01:04]} 31. Bf4+ {[%clk 0:01:36]}  Kh5 {[%clk 0:01:04]} 32. g4+ {[%clk 0:01:25]}  Kh4 {[%clk 0:01:04]} 33. Qb2 {[%clk 0:01:19]}  Bd2 {[%clk 0:00:42]} 34. Qxd2 {[%clk 0:01:16]}  Qxe3+ {[%clk 0:00:43]} 35. Qxe3 {[%clk 0:01:06]}  Bxf3 {[%clk 0:00:41]} 36. Qf2+ {[%clk 0:01:04]}  Kh3 {[%clk 0:00:39]} 37. Qg3# {[%clk 0:01:03]} 1-0


[Site "https://www.chess.com"]

[Event "Titled Tuesday Blitz January 31 Early 2023"]
[White "Bilan, Danila"]
[Black "Fiorito, Joaquin"]
[WhiteFideId "24161918"]
[BlackFideId "180173"]
[WhiteElo "2303"]
[BlackElo "2405"]
[Result "1-0"]
[Round "06"]
[TimeControl "180+2"]
[Date "2023.01.31"]
[WhiteClock "0:00:05"]
[BlackClock "0:00:36"]

1. d4 {[%clk 0:02:55]}  Nf6 {[%clk 0:03:00]} 2. Nf3 {[%clk 0:02:53]}  d5 {[%clk 0:03:00]} 3. c4 {[%clk 0:02:53]}  e6 {[%clk 0:02:59]} 4. Nc3 {[%clk 0:02:50]}  c6 {[%clk 0:02:59]} 5. Bg5 {[%clk 0:02:49]}  Be7 {[%clk 0:02:59]} 6. e3 {[%clk 0:02:48]}  Nbd7 {[%clk 0:03:00]} 7. cxd5 {[%clk 0:02:47]}  Nxd5 {[%clk 0:02:58]} 8. Bxe7 {[%clk 0:02:46]}  Qxe7 {[%clk 0:02:59]} 9. Bd3 {[%clk 0:02:44]}  Nxc3 {[%clk 0:02:59]} 10. bxc3 {[%clk 0:02:45]}  O-O {[%clk 0:03:00]} 11. Qc2 {[%clk 0:02:45]}  Nf6 {[%clk 0:02:54]} 12. O-O {[%clk 0:02:39]}  c5 {[%clk 0:02:53]} 13. Ne5 {[%clk 0:02:29]}  b6 {[%clk 0:02:50]} 14. Rfc1 {[%clk 0:02:19]}  Bb7 {[%clk 0:02:50]} 15. a4 {[%clk 0:02:17]}  Rfc8 {[%clk 0:02:35]} 16. Qe2 {[%clk 0:02:04]}  Rab8 {[%clk 0:02:33]} 17. a5 {[%clk 0:01:58]}  Nd5 {[%clk 0:02:17]} 18. axb6 {[%clk 0:01:47]}  axb6 {[%clk 0:02:16]} 19. h3 {[%clk 0:01:14]}  g6 {[%clk 0:02:08]} 20. Ba6 {[%clk 0:01:08]}  Bxa6 {[%clk 0:02:03]} 21. Qxa6 {[%clk 0:01:08]}  b5 {[%clk 0:01:50]} 22. Nc6 {[%clk 0:00:58]}  Rxc6 {[%clk 0:01:45]} 23. Qxc6 {[%clk 0:00:58]}  c4 {[%clk 0:01:43]} 24. Ra8 {[%clk 0:00:53]}  Rxa8 {[%clk 0:01:41]} 25. Qxa8+ {[%clk 0:00:54]}  Kg7 {[%clk 0:01:42]} 26. Qa5 {[%clk 0:00:47]}  Qb7 {[%clk 0:01:21]} 27. Rb1 {[%clk 0:00:47]}  b4 {[%clk 0:01:16]} 28. cxb4 {[%clk 0:00:32]}  c3 {[%clk 0:01:16]} 29. b5 {[%clk 0:00:21]}  Nb6 {[%clk 0:01:05]} 30. Qxc3 {[%clk 0:00:18]}  Nd5 {[%clk 0:01:05]} 31. Qc6 {[%clk 0:00:17]}  Qa7 {[%clk 0:01:05]} 32. b6 {[%clk 0:00:17]}  Qa2 {[%clk 0:01:03]} 33. Qc1 {[%clk 0:00:17]}  Nc3 {[%clk 0:00:59]} 34. Ra1 {[%clk 0:00:16]}  Qb3 {[%clk 0:00:56]} 35. Qe1 {[%clk 0:00:13]}  Nd5 {[%clk 0:00:54]} 36. Rb1 {[%clk 0:00:13]}  Qc2 {[%clk 0:00:38]} 37. b7 {[%clk 0:00:11]}  Nc3 {[%clk 0:00:38]} 38. b8=Q {[%clk 0:00:09]}  Nd5 {[%clk 0:00:37]} 39. Qe5+ {[%clk 0:00:08]}  Kh6 {[%clk 0:00:37]} 40. f3 {[%clk 0:00:06]}  f6 {[%clk 0:00:36]} 41. Qh4+ {[%clk 0:00:06]}  Kg7 {[%clk 0:00:37]} 42. Rb7+ {[%clk 0:00:06]}  Kf8 {[%clk 0:00:36]} 43. Qb8+ {[%clk 0:00:05]} 1-0


[Site "https://www.chess.com"]

[Event "Titled Tuesday Blitz January 31 Early 2023"]
[White "Arabidze, Meri"]
[Black "Vetokhin, Ilia"]
[WhiteFideId "13604040"]
[BlackFideId "24156078"]
[WhiteElo "2441"]
[BlackElo "2305"]
[Result "1-0"]
[Round "06"]
[TimeControl "180+2"]
[Date "2023.01.31"]
[WhiteClock "0:00:26"]
[BlackClock "0:00:01"]

1. Nf3 {[%clk 0:03:00]}  Nf6 {[%clk 0:02:56]} 2. g3 {[%clk 0:03:00]}  e6 {[%clk 0:02:57]} 3. Bg2 {[%clk 0:03:01]}  Be7 {[%clk 0:02:58]} 4. O-O {[%clk 0:03:01]}  O-O {[%clk 0:02:58]} 5. b3 {[%clk 0:03:01]}  d5 {[%clk 0:02:59]} 6. Bb2 {[%clk 0:03:02]}  b6 {[%clk 0:02:54]} 7. c4 {[%clk 0:03:02]}  Bb7 {[%clk 0:02:54]} 8. e3 {[%clk 0:03:02]}  Nbd7 {[%clk 0:02:53]} 9. Qe2 {[%clk 0:03:02]}  c5 {[%clk 0:02:45]} 10. Nc3 {[%clk 0:03:00]}  Qc7 {[%clk 0:02:46]} 11. d3 {[%clk 0:02:59]}  Rac8 {[%clk 0:02:46]} 12. Rad1 {[%clk 0:02:53]}  Rfd8 {[%clk 0:02:45]} 13. Ne1 {[%clk 0:02:49]}  Qb8 {[%clk 0:02:45]} 14. f4 {[%clk 0:02:49]}  Qa8 {[%clk 0:02:43]} 15. Nf3 {[%clk 0:02:47]}  a6 {[%clk 0:02:33]} 16. a4 {[%clk 0:02:43]}  d4 {[%clk 0:02:06]} 17. Nb1 {[%clk 0:02:35]}  Ng4 {[%clk 0:01:45]} 18. exd4 {[%clk 0:02:34]}  cxd4 {[%clk 0:01:42]} 19. Bxd4 {[%clk 0:02:35]}  Nc5 {[%clk 0:01:37]} 20. h3 {[%clk 0:02:34]}  h5 {[%clk 0:01:21]} 21. b4 {[%clk 0:02:19]}  Nxa4 {[%clk 0:01:16]} 22. Ba1 {[%clk 0:01:52]}  Bf6 {[%clk 0:01:01]} 23. hxg4 {[%clk 0:01:38]}  Bxa1 {[%clk 0:01:01]} 24. gxh5 {[%clk 0:01:36]}  Bf6 {[%clk 0:00:57]} 25. Ne5 {[%clk 0:01:24]}  Bxg2 {[%clk 0:00:53]} 26. Qxg2 {[%clk 0:01:25]}  Qxg2+ {[%clk 0:00:52]} 27. Kxg2 {[%clk 0:01:26]}  b5 {[%clk 0:00:53]} 28. Ng4 {[%clk 0:01:12]}  bxc4 {[%clk 0:00:47]} 29. Nxf6+ {[%clk 0:01:08]}  gxf6 {[%clk 0:00:46]} 30. dxc4 {[%clk 0:01:09]}  Rxd1 {[%clk 0:00:47]} 31. Rxd1 {[%clk 0:01:09]}  Rxc4 {[%clk 0:00:47]} 32. Rd6 {[%clk 0:00:59]}  Rxb4 {[%clk 0:00:46]} 33. Nd2 {[%clk 0:00:59]}  Rb2 {[%clk 0:00:41]} 34. Kh3 {[%clk 0:00:57]}  Kg7 {[%clk 0:00:32]} 35. Ne4 {[%clk 0:00:49]}  Rb4 {[%clk 0:00:23]} 36. Nf2 {[%clk 0:00:45]}  a5 {[%clk 0:00:16]} 37. Ng4 {[%clk 0:00:38]}  Nc3 {[%clk 0:00:10]} 38. Rd8 {[%clk 0:00:27]}  a4 {[%clk 0:00:04]} 39. h6+ {[%clk 0:00:27]}  Kg6 {[%clk 0:00:04]} 40. Rg8+ {[%clk 0:00:27]}  Kh7 {[%clk 0:00:04]} 41. Rg7+ {[%clk 0:00:27]}  Kh8 {[%clk 0:00:04]} 42. Nxf6 {[%clk 0:00:27]}  Ne4 {[%clk 0:00:01]} 43. Rh7# {[%clk 0:00:26]} 1-0


[Site "https://www.chess.com"]

[Event "Titled Tuesday Blitz January 31 Early 2023"]
[White "Mrudul Dehankar"]
[Black "Lewtak, Damian"]
[WhiteFideId "25096990"]
[BlackFideId "1141724"]
[WhiteElo "2030"]
[BlackElo "2381"]
[Result "0-1"]
[Round "06"]
[TimeControl "180+2"]
[Date "2023.01.31"]
[WhiteClock "0:00:01"]
[BlackClock "0:00:23"]

1. e4 {[%clk 0:03:00]}  g6 {[%clk 0:02:56]} 2. d4 {[%clk 0:03:00]}  Bg7 {[%clk 0:02:56]} 3. Nc3 {[%clk 0:02:59]}  d6 {[%clk 0:02:56]} 4. Nf3 {[%clk 0:02:58]}  e5 {[%clk 0:02:56]} 5. dxe5 {[%clk 0:02:58]}  dxe5 {[%clk 0:02:57]} 6. Qxd8+ {[%clk 0:02:57]}  Kxd8 {[%clk 0:02:58]} 7. Bc4 {[%clk 0:02:56]}  f6 {[%clk 0:02:48]} 8. Be3 {[%clk 0:02:46]}  Bd7 {[%clk 0:02:35]} 9. O-O-O {[%clk 0:02:44]}  Bh6 {[%clk 0:02:32]} 10. Bxg8 {[%clk 0:02:06]}  Bxe3+ {[%clk 0:02:31]} 11. fxe3 {[%clk 0:02:06]}  Rxg8 {[%clk 0:02:31]} 12. Rhf1 {[%clk 0:01:52]}  c6 {[%clk 0:02:23]} 13. g4 {[%clk 0:01:26]}  h6 {[%clk 0:02:11]} 14. h4 {[%clk 0:01:24]}  g5 {[%clk 0:01:54]} 15. hxg5 {[%clk 0:01:24]}  hxg5 {[%clk 0:01:55]} 16. Rh1 {[%clk 0:01:16]}  Kc8 {[%clk 0:01:54]} 17. Rdg1 {[%clk 0:00:32]}  Kc7 {[%clk 0:01:47]} 18. Rh7 {[%clk 0:00:30]}  Na6 {[%clk 0:01:42]} 19. Rd1 {[%clk 0:00:28]}  Rad8 {[%clk 0:01:40]} 20. Rf7 {[%clk 0:00:27]}  Rg6 {[%clk 0:01:34]} 21. Nd2 {[%clk 0:00:14]}  Nb8 {[%clk 0:01:16]} 22. Rf1 {[%clk 0:00:08]}  Rh8 {[%clk 0:01:09]} 23. R1xf6 {[%clk 0:00:06]}  Rxf6 {[%clk 0:01:10]} 24. Rxf6 {[%clk 0:00:07]}  Rh1+ {[%clk 0:01:10]} 25. Nf1 {[%clk 0:00:06]}  Bxg4 {[%clk 0:01:04]} 26. Kd2 {[%clk 0:00:07]}  Nd7 {[%clk 0:01:04]} 27. Rf7 {[%clk 0:00:06]}  Be6 {[%clk 0:01:03]} 28. Re7 {[%clk 0:00:03]}  Kd6 {[%clk 0:00:58]} 29. Rxe6+ {[%clk 0:00:02]}  Kxe6 {[%clk 0:00:59]} 30. Ng3 {[%clk 0:00:02]}  Rh2+ {[%clk 0:01:00]} 31. Nce2 {[%clk 0:00:02]}  Rh3 {[%clk 0:01:01]} 32. Nf5 {[%clk 0:00:02]}  Nf6 {[%clk 0:00:57]} 33. Nfg3 {[%clk 0:00:02]}  Nh5 {[%clk 0:00:49]} 34. Nf5 {[%clk 0:00:02]}  g4 {[%clk 0:00:47]} 35. Ke1 {[%clk 0:00:02]}  g3 {[%clk 0:00:38]} 36. Kf1 {[%clk 0:00:02]}  Rh1+ {[%clk 0:00:36]} 37. Ng1 {[%clk 0:00:02]}  Rh2 {[%clk 0:00:34]} 38. Ne2 {[%clk 0:00:02]}  Kf6 {[%clk 0:00:22]} 39. Nfxg3 {[%clk 0:00:01]}  Nxg3+ {[%clk 0:00:23]} 40. Nxg3 {[%clk 0:00:01]}  Rxc2 {[%clk 0:00:23]} 0-1


[Site "https://www.chess.com"]

[Event "Titled Tuesday Blitz January 31 Early 2023"]
[White "matenitian"]
[Black "Tristan, Leonardo"]
[BlackFideId "113816"]
[WhiteElo "2434"]
[BlackElo "2545"]
[Result "0-1"]
[Round "06"]
[TimeControl "180+2"]
[Date "2023.01.31"]
[WhiteClock "0:00:01"]
[BlackClock "0:01:07"]

1. e4 {[%clk 0:03:00]}  d5 {[%clk 0:03:00]} 2. exd5 {[%clk 0:03:00]}  Qxd5 {[%clk 0:03:00]} 3. Nc3 {[%clk 0:02:59]}  Qa5 {[%clk 0:03:01]} 4. Nf3 {[%clk 0:02:53]}  Nf6 {[%clk 0:03:01]} 5. g3 {[%clk 0:02:51]}  e5 {[%clk 0:02:59]} 6. Bg2 {[%clk 0:02:51]}  Bd6 {[%clk 0:02:47]} 7. O-O {[%clk 0:02:50]}  O-O {[%clk 0:02:47]} 8. d4 {[%clk 0:02:43]}  Nc6 {[%clk 0:02:45]} 9. Bg5 {[%clk 0:02:35]}  exd4 {[%clk 0:02:44]} 10. Bxf6 {[%clk 0:02:31]}  dxc3 {[%clk 0:02:45]} 11. Bxc3 {[%clk 0:02:31]}  Qh5 {[%clk 0:02:44]} 12. Re1 {[%clk 0:02:13]}  Bg4 {[%clk 0:02:41]} 13. Qd3 {[%clk 0:02:11]}  Rad8 {[%clk 0:02:41]} 14. Qe3 {[%clk 0:01:56]}  Bc5 {[%clk 0:02:22]} 15. Qf4 {[%clk 0:01:51]}  Bd6 {[%clk 0:02:23]} 16. Qe3 {[%clk 0:01:50]}  Bb4 {[%clk 0:02:23]} 17. a3 {[%clk 0:01:29]}  Bc5 {[%clk 0:02:17]} 18. Qf4 {[%clk 0:01:29]}  Bd6 {[%clk 0:02:18]} 19. Qe3 {[%clk 0:01:29]}  Qf5 {[%clk 0:02:18]} 20. Nd4 {[%clk 0:01:22]}  Nxd4 {[%clk 0:02:17]} 21. Qxd4 {[%clk 0:01:22]}  f6 {[%clk 0:02:18]} 22. Be4 {[%clk 0:01:14]}  Qh5 {[%clk 0:02:14]} 23. Bxb7 {[%clk 0:01:10]}  Kh8 {[%clk 0:02:12]} 24. Qc4 {[%clk 0:01:03]}  Bh3 {[%clk 0:02:03]} 25. Bc6 {[%clk 0:00:54]}  Qg6 {[%clk 0:02:00]} 26. Bd4 {[%clk 0:00:49]}  f5 {[%clk 0:01:58]} 27. Re6 {[%clk 0:00:46]}  Qh5 {[%clk 0:01:55]} 28. Qc3 {[%clk 0:00:38]}  Rg8 {[%clk 0:01:51]} 29. Rae1 {[%clk 0:00:34]}  h6 {[%clk 0:01:46]} 30. Be8 {[%clk 0:00:14]}  Qg5 {[%clk 0:01:44]} 31. Rg6 {[%clk 0:00:12]}  Rdxe8 {[%clk 0:01:42]} 32. Rxg5 {[%clk 0:00:08]}  hxg5 {[%clk 0:01:41]} 33. Bxg7+ {[%clk 0:00:08]}  Kh7 {[%clk 0:01:40]} 34. Bd4 {[%clk 0:00:08]}  c5 {[%clk 0:01:34]} 35. Be3 {[%clk 0:00:08]}  Re6 {[%clk 0:01:27]} 36. Rd1 {[%clk 0:00:06]}  f4 {[%clk 0:01:22]} 37. Bxc5 {[%clk 0:00:05]}  Be5 {[%clk 0:01:19]} 38. Qd3+ {[%clk 0:00:04]}  Kh6 {[%clk 0:01:18]} 39. Qd7 {[%clk 0:00:03]}  Rge8 {[%clk 0:01:11]} 40. Qf7 {[%clk 0:00:01]}  Bf6 {[%clk 0:01:07]} 0-1


[Site "https://www.chess.com"]

[Event "Titled Tuesday Blitz January 31 Early 2023"]
[White "Skliarov, Viktor"]
[Black "Gatterer, Florian"]
[WhiteFideId "14106736"]
[BlackFideId "811688"]
[WhiteElo "2383"]
[BlackElo "2170"]
[Result "1/2-1/2"]
[Round "06"]
[TimeControl "180+2"]
[Date "2023.01.31"]
[WhiteClock "0:02:34"]
[BlackClock "0:02:23"]

1. e4 {[%clk 0:03:00]}  c6 {[%clk 0:03:00]} 2. d4 {[%clk 0:03:00]}  d5 {[%clk 0:03:01]} 3. e5 {[%clk 0:02:59]}  c5 {[%clk 0:03:00]} 4. dxc5 {[%clk 0:02:58]}  e6 {[%clk 0:03:00]} 5. a3 {[%clk 0:02:57]}  Bxc5 {[%clk 0:02:59]} 6. b4 {[%clk 0:02:57]}  Be7 {[%clk 0:02:59]} 7. Qg4 {[%clk 0:02:57]}  g6 {[%clk 0:02:57]} 8. Nf3 {[%clk 0:02:55]}  h5 {[%clk 0:02:57]} 9. Qf4 {[%clk 0:02:55]}  Nh6 {[%clk 0:02:52]} 10. Bd3 {[%clk 0:02:53]}  Nf5 {[%clk 0:02:50]} 11. h3 {[%clk 0:02:51]}  a5 {[%clk 0:02:48]} 12. b5 {[%clk 0:02:49]}  Nd7 {[%clk 0:02:48]} 13. Rg1 {[%clk 0:02:42]}  Nc5 {[%clk 0:02:38]} 14. Bxf5 {[%clk 0:02:35]}  gxf5 {[%clk 0:02:36]} 15. a4 {[%clk 0:02:36]}  Bd7 {[%clk 0:02:27]} 16. Nbd2 {[%clk 0:02:34]}  Rc8 {[%clk 0:02:23]} 1/2-1/2


[Site "https://www.chess.com"]

[Event "Titled Tuesday Blitz January 31 Early 2023"]
[White "Reprintsev, Alexander"]
[Black "Jimenez, Joaquin"]
[WhiteFideId "14100541"]
[BlackFideId "109860"]
[WhiteElo "2253"]
[BlackElo "2195"]
[Result "0-1"]
[Round "06"]
[TimeControl "180+2"]
[Date "2023.01.31"]
[WhiteClock "0:01:03"]
[BlackClock "0:01:25"]

1. e4 {[%clk 0:03:00]}  e6 {[%clk 0:02:57]} 2. d4 {[%clk 0:03:00]}  d5 {[%clk 0:02:56]} 3. Nc3 {[%clk 0:03:00]}  Bb4 {[%clk 0:02:54]} 4. Ne2 {[%clk 0:02:59]}  dxe4 {[%clk 0:02:50]} 5. a3 {[%clk 0:02:59]}  Be7 {[%clk 0:02:48]} 6. Nxe4 {[%clk 0:02:58]}  Nf6 {[%clk 0:02:48]} 7. Qd3 {[%clk 0:02:51]}  Nbd7 {[%clk 0:02:44]} 8. Bf4 {[%clk 0:02:50]}  Nxe4 {[%clk 0:02:43]} 9. Qxe4 {[%clk 0:02:50]}  Nf6 {[%clk 0:02:44]} 10. Qf3 {[%clk 0:02:47]}  c5 {[%clk 0:02:42]} 11. O-O-O {[%clk 0:02:44]}  Qb6 {[%clk 0:02:31]} 12. dxc5 {[%clk 0:02:25]}  Bxc5 {[%clk 0:02:26]} 13. Nc3 {[%clk 0:02:25]}  Bd7 {[%clk 0:02:24]} 14. Be5 {[%clk 0:02:10]}  Be7 {[%clk 0:02:16]} 15. Bd4 {[%clk 0:02:05]}  Qa5 {[%clk 0:02:12]} 16. Qg3 {[%clk 0:01:57]}  Rc8 {[%clk 0:02:00]} 17. Qxg7 {[%clk 0:01:16]}  Rg8 {[%clk 0:01:57]} 18. Bxf6 {[%clk 0:01:11]}  Rxg7 {[%clk 0:01:56]} 19. Bxg7 {[%clk 0:01:12]}  Qg5+ {[%clk 0:01:55]} 20. Kb1 {[%clk 0:01:11]}  Qxg7 {[%clk 0:01:55]} 21. Ne4 {[%clk 0:01:10]}  Bc6 {[%clk 0:01:50]} 22. Nd6+ {[%clk 0:01:08]}  Bxd6 {[%clk 0:01:49]} 23. Rxd6 {[%clk 0:01:09]}  Rd8 {[%clk 0:01:47]} 24. Rxd8+ {[%clk 0:01:09]}  Kxd8 {[%clk 0:01:48]} 25. f3 {[%clk 0:01:09]}  Kc7 {[%clk 0:01:46]} 26. h4 {[%clk 0:01:07]}  Qg3 {[%clk 0:01:44]} 27. h5 {[%clk 0:01:07]}  h6 {[%clk 0:01:43]} 28. b3 {[%clk 0:01:07]}  a5 {[%clk 0:01:41]} 29. a4 {[%clk 0:01:06]}  Kb6 {[%clk 0:01:40]} 30. Kb2 {[%clk 0:01:06]}  Kc5 {[%clk 0:01:37]} 31. Kc3 {[%clk 0:01:03]}  Bd5 {[%clk 0:01:25]} 0-1


[Site "https://www.chess.com"]